Cogmind - Beta 16 @@@ ROGUE MODE // 2026.01.02 @ 01:34:52 Player: Zaros426 Result: Smashed by cave-in Performance ------------- Evolutions (0) 0 Regions Visited (2) 400 Robots Destroyed (31) 155 Value Destroyed (390) 390 Prototype IDs (2) 40 Alien Tech Used (0) 0 Bonus (0) 0 TOTAL SCORE: 985 Bonus ------- None Cogmind --------- Core Integrity 0/250 Matter 300/300 Energy 246/250 System Corruption 0% Temperature Cool (2) Movement Treading (160) Location -10/Mines Parts ------- > --- POWER (1) -------- Ion Engine > --- PROPULSION (2) --- Light Treads Light Treads > --- UTILITY (2) ------ Large Storage Unit > --- WEAPON (2) ------- Beam Cannon Beam Cannon > --- INVENTORY (15) --- Light Treads Huge Storage Unit Improved Terrain Scanner Seismic Detector Assault Rifle Assault Rifle Light Cannon Grenade Launcher Grenade Launcher Grenade Launcher Mining Laser Ripper Peak State ------------ > --- POWER ------------ Ion Engine > --- PROPULSION ------- Light Treads Light Treads > --- UTILITY ---------- Large Storage Unit Sensor Array > --- WEAPON ----------- EM Pulse Gun EM Pulse Gun > --- INVENTORY -------- Light Treads Light Treads Huge Storage Unit Assault Rifle Assault Rifle Light Cannon Grenade Launcher Grenade Launcher Grenade Launcher Mining Laser [Rating: 8] Favorites ----------- Power Ion Engine Engine Ion Engine Propulsion Light Treads Treads Light Treads Utility Sensor Array Device Sensor Array Storage Large Storage Unit Weapon EM Pulse Gun Energy Gun EM Pulse Gun Energy Cannon Beam Cannon Ballistic Gun Assault Rifle Ballistic Cannon Light Cannon Launcher Grenade Launcher Build | -11 -10 -10 ------- Run | Yrd Mat Min Slots Evolved . | . . . Power . | . . . Propulsion . | . . . Utility . | . . . Weapon . | . . . Parts Attached 16 | 8 2 6 Power 2 | 2 . . Engine 2 | 2 . . Core . | . . . Reactor . | . . . Propulsion 3 | 2 . 1 Treads 3 | 2 . 1 Leg . | . . . Wheel . | . . . Hover . | . . . Flight . | . . . Utility 3 | 1 2 . Device 1 | . 1 . Storage 2 | 1 1 . Processor . | . . . Hackware . | . . . Protection . | . . . Artifact . | . . . Weapon 8 | 3 . 5 Energy Gun 2 | 2 . . Energy Cannon 2 | . . 2 Ballistic Gun 1 | 1 . . Ballistic Cannon 1 | . . 1 Launcher 2 | . . 2 Special Weapon . | . . . Impact Weapon . | . . . Slashing Weapon . | . . . Piercing Weapon . | . . . Special Melee Weapon . | . . . Unidentified Prototypes . | . . . Parts Lost 4 | . . 4 Power . | . . . Propulsion 1 | . . 1 Utility 1 | . . 1 Weapon 2 | . . 2 Highest Loss Streak 2 | . . 2 To Critical Strikes . | . . . Average Backups 8 | 1 8 11 Power . | . . . Propulsion 1 | . 1 1 Utility . | . . 1 Weapon 6 | 1 6 7 Tool/Special . | . . . Unused Backups 10 | . . 10 Power . | . . . Propulsion 1 | . . 1 Utility 4 | . . 4 Weapon 5 | . . 5 Tool/Special . | . . . Average Slot Usage (%) 98 | . 98 98 Engine 14 | . 14 14 Treads 27 | . 28 27 Device 12 | . 12 13 Storage 14 | . 14 14 Energy Gun 16 | . 28 1 Energy Cannon 3 | . . 7 Ballistic Cannon 3 | . . 7 Launcher 4 | . . 11 Peak Build Rating 8 | 6 8 8 Average Rating 7 | 5 7 7 On Entrance 4 | . 6 8 Avg Prop Armor Cover (%) . | . . . Naked Turns . | . . . Heaviest Build 32 | 14 30 32 Greatest Support 40 | 40 40 40 Greatest Overweight (x) . | . . . Average Overweight (x) . | . . . Largest Inventory Capacity 15 | 8 15 15 Average Capacity 12 | 7 12 15 Most Carried 14 | 3 12 14 Average Carried 8 | 1 8 11 Final Capacity 15 | 8 15 15 Final Carried 12 | 3 12 12 Class Distribution -------------------- 100% | Mutant Dominant Class ---------------- Mutant | -10/Materials Mutant | -10/Mines Resources | -11 -10 -10 ----------- Run | Yrd Mat Min Matter Collected 512 | 280 15 217 Remotely . | . . . Salvage Created 819 | 320 367 132 Parts 68 | 26 36 6 Haulers Intercepted 1 | . 1 . Recyclers Shooed . | . . . Parts Field Recycled . | . . . Retrieved Matter . | . . . Parts Self-Destructed . | . . . Prevented . | . . . Parts Restored . | . . . Kills | -11 -10 -10 ------- Run | Yrd Mat Min Combat Hostiles Destroyed 25 | . 11 14 Guns 12 | . 11 1 Cannons 3 | . . 3 AOE 10 | . . 10 Classes Destroyed 9 | 3 4 2 Worker 3 | 2 1 . Tunneler 10 | 9 1 . Hauler 1 | . 1 . Recycler 1 | 1 . . Watcher 1 | . 1 . Swarmer 9 | . 9 . Grunt 4 | . 2 2 Demolisher 1 | . . 1 Assembled 10 | . . 10 Best Kill Streak 10 | 6 3 10 Combat Bots Only 10 | . 3 10 Max Kills in Single Turn 5 | 2 1 5 Gunslinging . | . . . Exploded 5 | . . 5 Melee . | . . . Uniques/NPCs Destroyed 1 | . . 1 YI-UF0 (-10/Mines) Combat | -11 -10 -10 -------- Run | Yrd Mat Min Hostile Shots Fired 67 | . 29 38 Missed 20 | . 8 12 Hits 47 | . 21 26 Projectile 47 | . 21 26 AOE 22 | . . 22 Damage Taken 1082 | 17 172 893 Core 289 | . 24 265 Absorbed by Shields . | . . . Core Remaining (%) 100 | 100 . . Volleys Fired 75 | 24 27 24 Largest 2 | 2 2 2 Hottest 120 | 80 80 120 Shots Fired 150 | 48 54 48 Gun 109 | 48 54 7 Cannon 31 | . . 31 Launcher 10 | . . 10 Special . | . . . Kinetic 13 | . . 13 Thermal 18 | . . 18 Explosive 10 | . . 10 Electromagnetic 109 | 48 54 7 Robot Hit Streak 7 | 7 5 5 Robot Miss Streak 5 | 2 5 3 Penetration Max . | . . . Secondary Targets . | . . . Shots Hit Robots 75 | 28 25 22 Core Hits 54 | 12 16 26 Critical Kills . | . . . Critical Parts Destroyed . | . . . Critical Strikes 1 | . . 1 Blast 1 | . . 1 Melee Attacks . | . . . Impact . | . . . Slashing . | . . . Piercing . | . . . Sneak Attacks . | . . . Combat Hostiles . | . . . Follow-up Attacks . | . . . Damage Inflicted 1754 | 490 437 827 Guns 793 | 366 389 38 Cannons 294 | . . 294 Explosions 655 | 124 36 495 Melee . | . . . Ramming 12 | . 12 . Kinetic 120 | . . 120 Thermal 334 | 124 36 174 Explosive 495 | . . 495 Electromagnetic 793 | 366 389 38 Impact . | . . . Slashing . | . . . Piercing . | . . . Highest Corruption . | . . . Average Corruption . | . . . Corruption Purged . | . . . Corruption Blocked . | . . . Overload Shots . | . . . Overflow Damage 42 | 18 6 18 Projectiles 17 | . . 17 Explosions 25 | 18 6 1 Melee . | . . . Knockbacks . | . . . Impact . | . . . Kinetic . | . . . Secondary . | . . . Self-Inflicted Damage 49 | 17 . 32 Shots 2 | 1 . 1 Rammed 4 | . 4 . Targets Rammed 4 | . 4 . Kicked . | . . . Crushed . | . . . Highest Temperature 360 | 180 66 360 Average Temperature 59 | 63 19 96 Received Heat Transfer 66 | . 12 54 Effects 1 | . . 1 Energy Bleed 1 | . . 1 Siege Activations . | . . . Martial Activations . | . . . Shielding Activations . | . . . Robots Disrupted . | . . . Combat Hostiles . | . . . Robots Corrupted . | . . . Combat Hostiles . | . . . Parts Fried 3 | 2 1 . Impact Corruptions . | . . . Robots Melted . | . . . Combat Hostiles . | . . . Parts Melted . | . . . Heat Transferred 620 | 200 50 370 Parts Sabotaged . | . . . Parts Stolen . | . . . Parts Stripped . | . . . Power Chain Reactions 4 | 3 1 . Alert | -11 -10 -10 ------- Run | Yrd Mat Min Maximum Alert Level . | . . . Low Security (%) 100 | 100 100 100 Level 1 . | . . . Level 2 . | . . . Level 3 . | . . . Level 4 . | . . . Level 5 . | . . . High Security . | . . . Max Security . | . . . Peak Influence 165 | 20 165 66 Initial 26 | . . 26 Average 35 | 3 69 8 Influence Increases 515 | 60 358 97 Destroy 0b10 Robot/C 280 | . 220 60 Destroy 0b10 Robot/NC 80 | 60 20 . Destroy Leader 44 | . 34 10 Successful Hack 49 | . 49 . Destroy Structure 32 | . 5 27 Lose Combat Pursuer 30 | . 30 . Influence Decreases 515 | 60 290 165 Entered New Map 42 | . . 42 Time Decay 463 | 60 290 113 Lost Part 10 | . . 10 Squads Dispatched . | . . . Investigation . | . . . Extermination . | . . . Reinforcement . | . . . Assault . | . . . Garrison . | . . . Intercept . | . . . Searches Triggered . | . . . Construction Impeded . | . . . Haulers Reinforced . | . . . Active Scanning Responses . | . . . Cargo Convoy Interrupts . | . . . Stealth | -11 -10 -10 --------- Run | Yrd Mat Min Distress Signals . | . . . Communications Jammed . | . . . Distress Signals . | . . . Times Spotted 39 | . 21 18 Peak Tracking Total 8 | . 5 8 Tactical Retreats 5 | . 2 3 Traps | -11 -10 -10 ------- Run | Yrd Mat Min Traps Triggered . | . . . Indirectly . | . . . Trap Hack Attempts . | . . . Triggered . | . . . Disarmed . | . . . Reprogrammed . | . . . Reused . | . . . Traps Extracted . | . . . Installed . | . . . Triggered . | . . . Machines | -11 -10 -10 ---------- Run | Yrd Mat Min Machines Disabled . | . . . Max in Single Turn . | . . . Machines Repaired . | . . . Machines Dismantled . | . . . Machines Sabotaged . | . . . Overloaded Fab Kills . | . . . Hacking | -11 -10 -10 --------- Run | Yrd Mat Min Machines Accessed 7 | . 7 . Terminals 7 | . 7 . Fabricators . | . . . Repair Stations . | . . . Recycling Units . | . . . Scanalyzers . | . . . Garrison Access . | . . . Total Hacks 27 | . 27 . Successful 12 | . 12 . Failed 14 | . 14 . Catastrophic 1 | . 1 . Database Lockouts 1 | . 1 . Manual 19 | . 19 . Terminals 27 | . 27 . Fabricators . | . . . Repair Stations . | . . . Recycling Units . | . . . Scanalyzers . | . . . Garrison Access . | . . . Terminal Hacks 6 | . 6 . Robot Analysis 1 | . 1 . Prototype ID Bank 1 | . 1 . Locate Traps 4 | . 4 . Fabricator Hacks . | . . . Repair Station Hacks . | . . . Recycling Unit Hacks . | . . . Scanalyzer . | . . . Garrison Access Hacks . | . . . Unauthorized Hacks 6 | . 6 . Terminals 6 | . 6 . Operators 1 | . 1 . Skim 5 | . 5 . Fabricators . | . . . Repair Stations . | . . . Recycling Units . | . . . Scanalyzers . | . . . Garrison Access . | . . . Data Cores Recovered . | . . . Used . | . . . Hacking Detections 7 | . 7 . Full Trace Events . | . . . Feedback Events . | . . . Feedback Blocked . | . . . Robot Schematics Acquired . | . . . Robots Built . | . . . Authchips . | . . . Time . | . . . Total Robot Build Rating . | . . . Part Schematics Acquired . | . . . Parts Built . | . . . Authchips . | . . . Time . | . . . Total Part Build Rating . | . . . Part Studies Acquired . | . . . Parts Repaired . | . . . Time . | . . . Parts Recycled . | . . . Recycled Matter . | . . . Retrieved Matter . | . . . Retrieved Components . | . . . Parts Scanalyzed . | . . . Part Schematics Acquired . | . . . Parts Damaged . | . . . Bothacking | -11 -10 -10 ------------ Run | Yrd Mat Min Used RIF Installer . | . . . Robots Hacked . | . . . Non-combat . | . . . Combat . | . . . Robot Hacks Applied . | . . . Relay Couplers Released . | . . . Fabnet Peak Effective % . | . . . Robots Rewired . | . . . Allies Hacked . | . . . Hacks Repelled . | . . . Allies | -11 -10 -10 -------- Run | Yrd Mat Min Total Allies . | . . . Largest Group . | . . . Highest-Rated Group . | . . . Highest-Rated Ally . | . . . Total Orders . | . . . Ally Attacks . | . . . Total Damage . | . . . Kills . | . . . Allies Corrupted . | . . . Allies Melted . | . . . Intel | -11 -10 -10 ------- Run | Yrd Mat Min Active Infowar (turns) 1475 | . 811 664 Sensors 1475 | . 811 664 Robot Analysis Total 1 | . 1 . Derelict Logs Recovered 1 | . . 1 Drone Launches . | . . . Drone Recoveries . | . . . Exploration | -11 -10 -10 ------------- Run | Yrd Mat Min Turns Passed 1901 | 316 882 703 Spaces Moved 834 | 102 477 255 Core 4 | 4 . . Treads 830 | 98 477 255 Legs . | . . . Wheels . | . . . Hover . | . . . Flight . | . . . Fastest Speed 50 | 50 160 160 Average Speed 159 | 155 160 160 Slowest Speed 160 | 160 160 160 Overloaded Moves . | . . . Propulsion Burnouts . | . . . Robots Hopped . | . . . Potential Cave-ins 2 | . . 2 Cave-ins Triggered 1 | . . 1 Exploration Rate (%) 46 | 5 68 65 Regions Visited 2 Branch Regions 1 Pre-discovered Areas . | . . . Known Exits Taken 1 | . 1 . Unknown Exits Taken 1 | 1 . . Scrap Searched 1 | . . 1 Spaces Dug . | . . . Terrain Destroyed 53 | 15 5 33 Melee . | . . . Projectile . | . . . AOE 53 | 15 5 33 Terrain Rammed . | . . . Walls Destroyed . | . . . Machines Disabled . | . . . Actions | -11 -10 -10 --------- Run | Yrd Mat Min Total 1248 | 207 540 501 Wait 299 | 72 19 208 Move 831 | 101 476 254 Hop . | . . . Pick Up 17 | 2 10 5 Fast Attach 7 | 6 1 . Attach 3 | . . 3 Detach . | . . . Swap 8 | 2 1 5 Drop 4 | . 2 2 Fire 75 | 24 27 24 Melee . | . . . Ram . | . . . Kick . | . . . Crush 4 | . 4 . Escape Stasis . | . . . Rewire . | . . . Trap . | . . . Miscellaneous . | . . . Route ------- -11/Scrapyard -10/Materials (discovered 3 exits: *Mat x2 / *Min) -10/Mines (discovered 3 exits: *Mat / Exi / Sub) History --------- Turn | Location | Event 7 | -11/Scrapyard | Discovered new exit (range 16) 317 | -11/Scrapyard | Entered Materials 338 | -10/Materials | Build established: Mutant 746 | -10/Materials | Discovered new exit (range 15) 894 | -10/Materials | Learned 2 Storage zone layouts 954 | -10/Materials | Identified exit to Materials 954 | -10/Materials | Identified exit to Mines 1002 | -10/Materials | Learned 4 Subcaves zone layouts 1042 | -10/Materials | Learned location of 2 exits from Mines 1042 | -10/Materials | Central database locked down 1088 | -10/Materials | Learned Storage interactive machine intel 1152 | -10/Materials | Learned 4 Subcaves zone layouts 1199 | -10/Materials | Entered Mines 1200 | -10/Mines | Identified exit to Exiles 1200 | -10/Mines | Identified exit to Subcaves 1250 | -10/Mines | Assembled infested the area 1363 | -10/Mines | Destroyed 10 combat bots 1604 | -10/Mines | A weapon hastily lodged in a ceiling crevice suddenly fell to the ground 1629 | -10/Mines | Learned Materials stockpile data 1855 | -10/Mines | Core integrity fell below 50% 1866 | -10/Mines | Core integrity fell below 20% 1867 | -10/Mines | Destroyed YI-UF0 1893 | -10/Mines | Discovered exit to Materials (range 15) 1902 | -10/Mines | Crushed by falling debris 1902 | -10/Mines | Smashed by cave-in Last Messages --------------- 01808_ Dropped Seismic Detector. 01808_ U-05 Engineer lays Concrete. 01811_ U-05 Engineer builds a Wall. 01815_ U-05 Engineer lays Concrete. 01848_ Lgt. Treads destroyed. 01852_ YI-UF0 mumbles something. 01858_ The unstable cave ceiling collapses. 01863_ Sensor Array destroyed. 01865_ The unstable cave ceiling collapses. 01867_ Destroyed Shock Absorption System. 01867_ YI-UF0 destroyed. 01868_ The unstable cave ceiling collapses. 01873_ Overheating: Energy bleed (-40). 01875_ The unstable cave ceiling collapses. 01886_ Acquired 36 matter. 01893_ Acquired 8 matter. 01893_ EXIT=FOUND: MATERIALS 01896_ K-01 Serf collects debris. 01902_ The unstable cave ceiling collapses. 01902_ Crushed by falling debris. Map ----- +----------------------------------------------------+ | #### #?????????????? | | #?????????????? | | ## #?????????????? | | # # #?????????????? | | # ! ## ####?????????????? | | ######### # #????????????????? | | ????????## #????????????????? | | ?????????# #????????????????? | | ?????????## ## # #?##????? [??????? | | ??????????#### ##### ####? ??????? | | ????????????### # # ??????? | | ????????????# ??????? | | ???????????## %!= ??????? | | ???????????# % ## ??????? | | ?? ## ##?? ????????? | | ?? ! ##??????????? | | ?? * ###????????? | | ???## !%! ##???????? | | ????## #???????? | | ?????# # =% #???????? | | ?????# # ## ##???????? | | ?????# # # ######????????? | | ?????## # # # #?????????? | | ??????## # # # # #?????????? | | ???????### # # ## # #?????? | | ?????????# % # @ #???? | | ?????????## # # = #???? | | ?????????# # t = # #???? | | ?????????? * = #??? | | ??????????? # ! ###??? | | ??????????? ## # ## % % # #????? | | ????????????? ? ?#= !!%< % ???? | | ?????????????? ??#% |=k # #?? | | ????????????? !% ??*=a !!!% ? ???? | | ????????????? # ??? ! ! ?#??? | | ??????????????t # #??? *%= #???? | | ?????????????? ???# # #???? | | ?????????????????????#= ????? | | ????????????????????? # =# ??????? | | ?????????????????????a%? =%=?????????? | | ????????????????????????% ???????????? | | ???????????????????????????????????????? | | ???????????????????????????????????????? | | ???????????????????????????????????????? | | ???????????????????????????????????????? | | ???????????????????????????????????????? | | ???????????????????????????????????????? | | ???????????????????????????????????????? | | ???????????????????????????????????????? | | ???????????????????????????????????????? | +----------------------------------------------------+ Best States ------------- Heat Dissipation 25 Energy Generation 10 Energy Capacity 250 Matter Stores 300 Matter Capacity 300 Sight Range 16 Robot Scan Range 14 Terrain Scan Density 10 Evasion (%) 40 Recoil Reduction 2 Item Schematics ----------------- None Robot Schematics ------------------ None Fabricated ------------ Nothing Repaired ---------- Nothing Studied --------- None Alien Tech Used ----------------- None Achievements -------------- None Challenges ------------ None Game ------ Seed RecyclingGravmagExtrapolator Manual? 0 Play Time 00:10:45 Cumulative 67.0 hours Start 2026.01.02 @ 01:24:27 End 2026.01.02 @ 01:34:52 Sessions 1 Manual Loads 0 Difficulty Rogue Special Mode None Game No. 32 Rogue 32 Adventurer 0 Explorer 0 Win Type - Total 0 Types 0/0/0/0/0/0/0/0/0/0 Lore% 51 Gallery% 55 Achievement% 50 Wizard Run 0 Options --------- Layout 0 ASCII 0 Keyboard 0 Movement Mouse Keybinds 0 Fullscreen 1 Font 24/Smallcaps Map View 183x50 Zoom Use 0% Tactical HUD 1 Map Filters NONE Filters NONE Steam 1 RUN: 68673e59-942f-4af1-b6b7-66be1c400013